bitfinex/quotes_BTCUSD_20241119
["timestamp","ask_amount","ask_price","bid_price","bid_amount"]
[1732049746045,0.18759031,92244.0,92220.0,0.046]
[1732049746252,0.18759031,92244.0,92223.0,0.054215]
[1732049746494,0.18759031,92244.0,92220.0,0.046]
[1732049746495,0.216813,92245.0,92222.0,0.01]
[1732049746707,0.108414,92239.0,92222.0,0.064216]
[1732049746923,0.108414,92239.0,92220.0,0.046]
[1732049746924,0.108416,92237.0,92220.0,0.100218]
[1732049747139,0.108416,92237.0,92220.0,0.0098465]
[1732049747367,0.10810319,92237.0,92220.0,0.0098465]
[1732049747575,0.10810319,92237.0,92213.0,0.054221]
[1732049747781,0.10810319,92237.0,92220.0,0.054217]
[1732049748012,0.10810319,92237.0,92213.0,0.0199593]
[1732049748228,0.09988156,92237.0,92221.0,0.054217]
[1732049748741,0.09988156,92237.0,92217.0,0.054219]
[1732049748969,0.09988156,92237.0,92209.0,0.054224]
[1732049749179,0.09988156,92237.0,92217.0,0.054219]
[1732049749409,0.09988156,92237.0,92217.0,0.0098677]
[1732049749645,0.09988156,92237.0,92217.0,0.0640867]
[1732049749646,0.34988156,92237.0,92217.0,0.0640867]
[1732049749858,0.48194411,92237.0,92217.0,0.0098677]
[1732049750284,0.48194411,92237.0,92210.0,0.00028845]
[1732049751812,0.48394411,92237.0,92210.0,0.00028845]
[1732049752245,0.38406255,92237.0,92210.0,0.00028845]
[1732049752535,0.60047855,92237.0,92210.0,0.00028845]
[1732049752749,0.29396918,92213.0,92210.0,0.00028845]
[1732049752991,0.29423603,92213.0,92210.0,0.00028845]
[1732049753202,0.31723603,92213.0,92210.0,0.00028845]
[1732049753426,0.42629858,92213.0,92210.0,0.00028845]
[1732049754764,0.31723603,92213.0,92210.0,0.00028845]
[1732049755240,0.0483,92234.0,92210.0,0.00028845]
[1732049755241,0.18785716,92222.0,92215.0,0.05422]
[1732049755473,0.108424,92230.0,92216.0,0.05422]
[1732049755700,0.108435,92221.0,92210.0,0.00028845]
[1732049755920,0.18785716,92222.0,92210.0,0.00028845]
[1732049755921,0.18785716,92222.0,92213.0,0.054222]
[1732049756144,0.18785716,92222.0,92211.0,0.064093]
[1732049756145,0.108444,92213.0,92211.0,0.00987]
[1732049756388,0.18785716,92222.0,92210.0,0.00028845]
[1732049756610,0.18785716,92222.0,92213.0,0.054222]
[1732049756829,0.216842,92233.0,92215.0,0.054221]
[1732049757082,0.108431,92225.0,92215.0,0.054221]
[1732049757284,0.2905201,92235.0,92218.0,0.054219]
[1732049757513,0.216842,92233.0,92218.0,0.054218]
[1732049757735,0.108427,92228.0,92219.0,0.054218]
[1732049757972,0.2905201,92235.0,92218.0,0.054218]
[1732049758203,0.131444,92213.0,92210.0,0.00028845]
[1732049758447,0.131444,92213.0,92159.0,0.0811109]
[1732049758448,0.108468,92193.0,92160.0,0.01]
[1732049758672,0.53105065,92193.0,92169.0,0.054247]
[1732049758901,0.53105065,92193.0,92172.0,0.054246]
[1732049759128,0.53105065,92193.0,92170.0,0.054247]
[1732049759352,0.53105065,92193.0,92171.0,0.054646]
[1732049759581,0.53105065,92193.0,92172.0,0.0642042]
[1732049759805,0.53105065,92193.0,92172.0,0.0099582]
[1732049760719,0.208469,92192.0,92172.0,0.0099582]
[1732049760944,0.37890356,92192.0,92172.0,0.0099582]
[1732049761181,0.41250218,92192.0,92171.0,0.0004]
[1732049762309,0.11,92191.0,92171.0,0.0004]
[1732049762537,0.3990121,92172.0,92171.0,0.0004]
[1732049763210,0.4220121,92172.0,92171.0,0.0004]
[1732049763432,0.216952,92187.0,92171.0,0.0004]
[1732049763433,0.2905201,92176.0,92171.0,0.0004]
[1732049764101,0.108492,92172.0,92171.0,0.0004]
[1732049764551,0.25,92173.0,92171.0,0.0004]
[1732049765231,0.24793831,92173.0,92171.0,0.0004]
[1732049765695,0.2905201,92176.0,92171.0,0.0004]
[1732049765909,0.3990081,92176.0,92171.0,0.0004]
[1732049766363,0.108492,92172.0,92171.0,0.0004]
[1732049766824,0.108492,92172.0,92171.0,0.0012549]
[1732049767306,0.466982,92174.0,92171.0,0.0012549]
[1732049767546,0.108492,92172.0,92171.0,0.0012549]
[1732049768026,0.18191678,92172.0,92171.0,0.0012549]
[1732049768468,0.3990121,92172.0,92171.0,0.0012549]
[1732049769143,0.43673439,92172.0,92171.0,0.0012549]
[1732049769369,0.25,92173.0,92172.0,0.054246]
[1732049769593,0.2905201,92183.0,92171.0,0.0012549]
[1732049769817,0.2905201,92183.0,92177.0,0.054242]
[1732049770253,0.2905201,92183.0,92171.0,0.0012549]
[1732049770503,0.2905201,92183.0,92178.0,0.054242]
[1732049770725,0.216962,92182.0,92171.0,0.0012549]
[1732049770946,0.2905201,92183.0,92175.0,0.054244]
[1732049771172,0.2905201,92183.0,92178.0,0.054242]
[1732049771401,0.2905201,92183.0,92171.0,0.0012549]
[1732049772087,0.2905201,92183.0,92179.0,0.054242]
[1732049772318,0.2905201,92183.0,92181.0,0.05424]
[1732049772547,0.2905201,92183.0,92173.0,0.054245]
[1732049772797,0.28842724,92183.0,92177.0,0.054243]
[1732049773029,0.28842724,92183.0,92182.0,0.05424]
[1732049773475,0.28842724,92183.0,92171.0,0.0012549]
[1732049773698,0.28842724,92183.0,92182.0,0.05424]
[1732049775329,0.25,92195.0,92194.0,0.054233]
[1732049775547,0.25,92195.0,92194.0,0.16329555]
[1732049775773,0.043367,92208.0,92194.0,0.16329555]
[1732049775774,0.043367,92208.0,92204.0,0.054227]
[1732049775989,0.043367,92208.0,92195.0,0.00021128]
[1732049775990,0.2905201,92216.0,92209.0,0.054224]
[1732049776211,0.2905201,92216.0,92207.0,0.054225]
[1732049776212,0.2905201,92210.0,92207.0,0.054225]
[1732049776675,0.2905201,92210.0,92195.0,0.00021128]
[1732049776904,0.18785305,92196.0,92195.0,0.05444328]
[1732049777345,0.18785305,92205.0,92204.0,0.054227]
[1732049778258,0.18785305,92205.0,92202.0,0.054228]
[1732049778478,0.18785305,92205.0,92197.0,0.054231]
[1732049778479,0.18785305,92204.0,92195.0,0.00021128]
[1732049778696,0.108466,92195.0,92186.0,0.0098391]
[1732049778911,0.28191637,92205.0,92191.0,0.0008549]
[1732049779131,0.2517098,92205.0,92191.0,0.0008549]
[1732049779353,0.10906255,92204.0,92191.0,0.0008549]
[1732049779588,0.10906255,92204.0,92166.0,1.34106176]
[1732049779589,0.01,92199.0,92173.0,0.054245]
[1732049779812,0.18794109,92174.0,92166.0,1.29136176]
[1732049780027,0.108492,92172.0,92166.0,1.29136176]
[1732049781457,0.01,92171.0,92166.0,1.1942574]
[1732049781676,0.01,92139.0,92136.0,0.054267]
[1732049781893,0.18794109,92138.0,92121.0,0.054276]
[1732049782106,0.18794109,92138.0,92104.0,0.0816]
[1732049782107,0.18794109,92138.0,92137.0,0.054267]
[1732049782325,0.09686468,92138.0,92137.0,0.054267]
[1732049782773,0.01,92168.0,92147.0,0.054261]
[1732049783021,0.01,92168.0,92136.0,0.0807]
[1732049783022,0.01,92168.0,92164.0,0.05425]
[1732049783256,0.01,92168.0,92166.0,0.054249]
[1732049783507,0.01,92168.0,92167.0,0.054249]
[1732049783778,0.18794109,92169.0,92168.0,0.054248]
[1732049784657,0.216935,92194.0,92168.0,0.054248]
[1732049784658,0.25,92187.0,92186.0,0.054238]
[1732049785321,0.01,92184.0,92182.0,0.05424]
[1732049785555,0.18794109,92188.0,92172.0,0.00210481]
[1732049785777,0.18794109,92188.0,92187.0,0.054237]
[1732049785998,0.00809553,92185.0,92182.0,0.00265604]
[1732049786436,0.00809553,92185.0,92182.0,0.05475206]
[1732049786652,0.00809553,92185.0,92181.0,0.05424]
[1732049786872,0.18794109,92188.0,92187.0,0.054237]
[1732049787088,0.18794109,92188.0,92186.0,0.054237]
[1732049787355,0.18794109,92188.0,92187.0,0.054237]
[1732049787574,0.00809553,92198.0,92194.0,0.054233]
[1732049787575,0.00809553,92195.0,92194.0,0.054233]
[1732049787795,0.18794109,92198.0,92197.0,0.054231]
[1732049788252,0.00809553,92207.0,92204.0,0.05398736]
[1732049789152,0.19603662,92211.0,92204.0,0.05398736]
[1732049789814,0.03669897,92208.0,92204.0,0.05398736]
[1732049790029,0.19603662,92211.0,92204.0,0.05398736]
[1732049790250,0.18794109,92211.0,92204.0,0.05398736]
[1732049791633,0.0004,92219.0,92204.0,0.05398736]
[1732049791850,0.0017094,92215.0,92204.0,0.16304991]
[1732049792091,0.0017094,92215.0,92204.0,0.16495438]
[1732049792313,0.0017094,92215.0,92214.0,0.054221]
[1732049792530,0.0017094,92215.0,92214.0,0.21048355]
[1732049793395,0.0017094,92215.0,92214.0,0.054221]
[1732049794495,0.0017094,92215.0,92214.0,0.16328355]
[1732049794937,0.0017094,92215.0,92214.0,0.17518802]
[1732049795150,0.0017094,92215.0,92214.0,0.25248802]
[1732049795835,0.0004,92219.0,92218.0,0.07696747]
[1732049796071,0.0004,92219.0,92218.0,0.33253002]
[1732049796354,0.18767594,92264.0,92238.0,0.06695347]
[1732049796578,0.18767594,92264.0,92238.0,0.17601602]
[1732049796802,0.19577147,92273.0,92238.0,0.25131602]
[1732049797039,0.18767594,92273.0,92238.0,0.41031602]
[1732049797269,0.25,92277.0,92249.0,0.00190447]
[1732049797539,0.25,92277.0,92276.0,0.065022]
[1732049797758,0.00849553,92279.0,92278.0,0.06502]
[1732049798209,0.00809553,92267.0,92239.0,0.1]
[1732049798495,0.10946255,92279.0,92238.0,0.1243]
[1732049798496,0.18767594,92258.0,92240.0,0.11096702]
[1732049798749,0.0004,92279.0,92273.0,0.065024]
[1732049798750,0.00809553,92276.0,92273.0,0.065024]
[1732049799001,0.00809553,92276.0,92247.0,0.01190447]
[1732049799002,0.0004,92279.0,92278.0,0.06502]
[1732049799248,0.0004,92279.0,92278.0,0.06432]
[1732049799707,0.0004,92279.0,92278.0,0.06502]
[1732049799949,0.00809553,92264.0,92260.0,0.0099679]
[1732049800231,0.00809553,92261.0,92260.0,0.0099679]
[1732049800464,0.00809553,92269.0,92261.0,0.065032]
[1732049800697,0.00809553,92269.0,92240.0,0.00190447]
[1732049800698,0.00809553,92269.0,92268.0,0.065027]
[1732049800931,0.0004,92279.0,92242.0,0.00190447]
[1732049801156,0.00809553,92278.0,92277.0,0.065021]
[1732049801633,0.00809553,92278.0,92273.0,0.065024]
[1732049801856,0.00809553,92270.0,92269.0,0.00270376]
[1732049802080,0.00809553,92270.0,92269.0,0.06773076]
[1732049802315,0.00809553,92270.0,92269.0,0.00270376]
[1732049802544,0.108377,92270.0,92269.0,0.00270376]
[1732049802782,0.11647253,92270.0,92269.0,0.00270376]
[1732049803013,0.24853508,92270.0,92269.0,0.00270376]
[1732049803492,0.03109553,92270.0,92269.0,0.00270376]
[1732049803751,0.25,92272.0,92269.0,0.06773076]
[1732049804011,0.00809553,92271.0,92270.0,0.065026]
[1732049806120,0.00809553,92274.0,92273.0,0.054187]
[1732049806341,0.00809553,92274.0,92270.0,0.065026]
[1732049806342,0.29832272,92275.0,92274.0,0.054186]
[1732049807295,0.00809553,92271.0,92269.0,0.00270376]
[1732049807526,0.24853508,92270.0,92269.0,0.00270376]
[1732049808206,0.00809553,92270.0,92269.0,0.05689276]
[1732049808466,0.023,92274.0,92270.0,0.054188]
[1732049808748,0.29832272,92275.0,92274.0,0.054186]
[1732049808969,0.0004,92279.0,92278.0,0.054184]
[1732049809765,0.0004,92279.0,92278.0,0.16324655]
[1732049810078,0.0004,92299.0,92285.0,0.06608347]
[1732049810308,0.0004,92299.0,92285.0,0.17514602]
[1732049810541,0.0004,92299.0,92285.0,0.17482894]
[1732049810759,0.0004,92299.0,92285.0,0.16292447]
[1732049811182,0.0004,92299.0,92285.0,0.15792447]
[1732049811699,0.00809553,92290.0,92285.0,0.04886192]
[1732049811918,0.00809553,92282.0,92281.0,0.054182]
[1732049812137,0.00809553,92285.0,92284.0,0.05418]
[1732049812367,0.21103432,92294.0,92290.0,0.054176]
[1732049812776,0.023,92293.0,92288.0,0.054178]
[1732049813015,0.023,92293.0,92282.0,0.054181]
[1732049813222,0.023,92291.0,92282.0,0.054181]
[1732049813434,0.108356,92288.0,92282.0,0.108362]
[1732049813650,0.108356,92288.0,92275.0,0.0098024]
[1732049813651,0.023,92293.0,92275.0,0.0098024]
[1732049813866,0.023,92291.0,92290.0,0.054177]
[1732049814098,0.023,92291.0,92288.0,0.054177]
[1732049814099,0.08203125,92296.0,92288.0,0.054177]
[1732049814361,0.08203125,92296.0,92278.0,0.054183]
[1732049814362,0.23388959,92388.0,92376.0,0.01]
[1732049814593,0.31575094,92417.0,92376.0,0.01]
[1732049814594,0.02150373,92455.0,92418.0,0.084102]
[1732049814822,0.02150373,92455.0,92416.0,0.054103]
[1732049814823,0.02150373,92455.0,92432.0,0.074093]
[1732049815054,0.0090285,92451.0,92450.0,0.074083]
[1732049815293,0.0004,92459.0,92454.0,0.07408]
[1732049815512,0.0004,92459.0,92458.0,0.076078]
[1732049815730,0.0004,92479.0,92475.0,0.01]
[1732049815947,0.0004,92479.0,92478.0,0.054066]
[1732049816165,0.0004,92479.0,92475.0,0.02]
[1732049816607,0.0004,92479.0,92476.0,0.01]
[1732049816853,0.0004,92479.0,92472.0,0.01]
[1732049817278,0.0004,92479.0,92467.0,0.42136753]
[1732049817496,0.0004,92479.0,92462.0,0.01]
[1732049817497,0.0004,92479.0,92475.0,0.28464835]
[1732049817711,0.0004,92479.0,92472.0,0.28464835]
[1732049817930,0.0004,92479.0,92471.0,0.28464835]
[1732049817931,0.29022719,92473.0,92471.0,0.28464835]
[1732049818165,0.39928974,92472.0,92465.0,0.28464835]
[1732049818389,0.39928974,92472.0,92450.0,0.18944211]
[1732049818640,0.29022719,92451.0,92441.0,0.19944211]
[1732049818861,0.29022719,92442.0,92439.0,0.01]
[1732049819137,0.29022719,92442.0,92426.0,0.18944211]
[1732049819376,0.0474,92444.0,92413.0,0.01]
[1732049819377,0.29022719,92419.0,92413.0,0.01]
[1732049819614,0.29022719,92419.0,92418.0,0.074102]
[1732049819850,0.29022719,92432.0,92428.0,0.01]
[1732049820075,0.29022719,92432.0,92427.0,0.01]
[1732049820076,0.29022719,92432.0,92430.0,0.054094]
[1732049820314,0.29022719,92432.0,92431.0,0.064094]
[1732049821934,0.1,92457.0,92424.0,0.01]
[1732049822157,0.1,92457.0,92426.0,0.01]
[1732049822158,0.216326,92453.0,92426.0,0.01]
[1732049822415,0.20906255,92452.0,92426.0,0.01]
[1732049822633,0.29022719,92427.0,92426.0,0.01]
[1732049822851,0.29022719,92427.0,92426.0,0.074097]
[1732049823074,0.29022719,92437.0,92436.0,0.076091]
[1732049823311,0.29022719,92448.0,92447.0,0.076085]
[1732049823534,0.216178,92517.0,92447.0,0.076085]
[1732049823535,0.29022719,92459.0,92458.0,0.066078]
[1732049823756,0.29022719,92459.0,92458.0,0.064078]
[1732049823978,0.29022719,92459.0,92458.0,0.074078]
[1732049824216,0.29022719,92459.0,92458.0,0.18314055]
[1732049824968,0.29022719,92459.0,92458.0,0.074894]
[1732049825210,0.29022719,92459.0,92458.0,0.022]
[1732049825432,0.29022719,92459.0,92458.0,0.086894]
[1732049826097,0.29022719,92459.0,92458.0,0.19595655]
[1732049826321,0.0829,92492.0,92475.0,0.074882]
[1732049826322,0.29022719,92476.0,92475.0,0.074882]
[1732049826770,0.29022719,92476.0,92475.0,0.01]
[1732049827262,0.10812,92490.0,92475.0,0.074882]
[1732049827523,0.29022719,92476.0,92475.0,0.01]
[1732049827751,0.29022719,92476.0,92463.0,0.01]
[1732049827973,0.29022719,92464.0,92463.0,0.01]
[1732049828461,0.29022719,92464.0,92463.0,0.07489]
[1732049829145,0.29022719,92464.0,92463.0,0.01]
[1732049829404,0.29022719,92477.0,92467.0,0.00245935]
[1732049829642,0.29022719,92477.0,92468.0,0.064886]
[1732049829885,0.01,92478.0,92430.0,0.023]
[1732049830108,0.0104,92479.0,92463.0,0.06489]
[1732049830109,0.01,92469.0,92463.0,0.06489]
[1732049830354,0.01,92469.0,92466.0,0.064888]
[1732049830575,0.01,92469.0,92439.0,0.10906255]
[1732049830576,0.01,92469.0,92467.0,0.129774]
[1732049830800,0.01,92469.0,92440.0,0.1]
[1732049831016,0.01,92469.0,92466.0,0.064888]
[1732049831229,0.01,92469.0,92467.0,0.064887]
[1732049831456,0.01,92454.0,92450.0,0.064899]
[1732049831682,0.0004,92479.0,92478.0,0.06488]
[1732049832626,0.0004,92479.0,92473.0,0.064883]
[1732049832627,0.0004,92479.0,92474.0,0.064883]
[1732049832631,0.0004,92479.0,92478.0,0.06488]
[1732049833332,0.0104,92479.0,92460.0,0.0098068]
[1732049833578,0.01,92468.0,92460.0,0.0098068]
[1732049833801,0.01,92463.0,92424.0,0.064917]
[1732049834036,0.01,92457.0,92450.0,0.064899]
[1732049834259,0.01,92457.0,92454.0,0.064896]
[1732049834496,0.01,92457.0,92451.0,0.064899]
[1732049834743,0.01,92461.0,92434.0,0.064911]
[1732049834993,0.01,92461.0,92425.0,0.087917]
[1732049834994,0.01,92461.0,92460.0,0.064892]
[1732049835234,0.108148,92466.0,92438.0,0.0199213]
[1732049835476,0.108148,92466.0,92455.0,0.064895]
[1732049835711,0.216284,92471.0,92456.0,0.064895]
[1732049835934,0.108152,92463.0,92453.0,0.064897]
[1732049836177,0.108156,92459.0,92448.0,0.064901]
[1732049836432,0.0004,92479.0,92444.0,0.0748263]
[1732049836433,0.108164,92453.0,92444.0,0.0748263]
[1732049836659,0.108163,92453.0,92444.0,0.0748263]
[1732049836879,0.216321,92455.0,92440.0,0.064906]
[1732049837143,0.22481748,92458.0,92443.0,0.064904]
[1732049837365,0.216288,92469.0,92453.0,0.05405708]
[1732049837625,0.1,92504.0,92453.0,0.05405708]
[1732049837626,0.5053556,92468.0,92453.0,0.05405708]
[1732049837868,0.108147,92467.0,92458.0,0.06646543]
[1732049838116,0.2890646,92468.0,92458.0,0.00157243]
[1732049838356,0.2890646,92468.0,92458.0,0.06646643]
[1732049838596,0.2890646,92468.0,92371.0,0.18792426]
[1732049838597,0.108182,92437.0,92426.0,0.064916]
[1732049838829,0.2890646,92459.0,92411.0,0.01]
[1732049838830,0.2890646,92459.0,92449.0,0.0099283]
[1732049839338,0.0004,92479.0,92427.0,0.0117056]
[1732049839562,0.10906255,92478.0,92450.0,0.064899]
[1732049839796,0.10906255,92478.0,92429.0,0.10906255]
[1732049839797,0.10815,92464.0,92454.0,0.064896]
[1732049840044,0.108153,92462.0,92454.0,0.064896]
[1732049840275,0.0008528,92467.0,92454.0,0.10906255]
[1732049841210,0.108154,92461.0,92448.0,0.009936]
[1732049841462,0.108154,92461.0,92450.0,0.064899]
[1732049841691,0.108154,92461.0,92450.0,0.17396155]
[1732049841936,0.0008528,92467.0,92457.0,0.064894]
[1732049842173,0.10815,92464.0,92457.0,0.064894]
[1732049842417,0.0008528,92467.0,92452.0,0.064897]
[1732049842418,0.108155,92460.0,92452.0,0.064897]
[1732049842642,0.108157,92458.0,92451.0,0.064899]
[1732049842888,0.216295,92466.0,92453.0,0.064897]
[1732049843116,0.0008528,92467.0,92466.0,0.064888]
[1732049843349,0.0008528,92467.0,92440.0,0.1]
[1732049843582,0.0008528,92467.0,92447.0,0.0099861]
[1732049843835,0.0008528,92467.0,92466.0,0.064888]
[1732049844815,0.10116862,92474.0,92468.0,0.064887]
[1732049845077,0.108532,92479.0,92473.0,0.064883]
[1732049845300,0.0004,92479.0,92478.0,0.06488]
[1732049845535,0.0004,92479.0,92478.0,0.17394255]
[1732049847943,0.0004,92479.0,92478.0,0.023]
[1732049848163,1e-08,92479.0,92478.0,0.08788]
[1732049848397,1e-08,92479.0,92478.0,0.06488]
[1732049849984,1e-08,92479.0,92478.0,0.17394255]
[1732049850445,1e-08,92479.0,92478.0,0.18085733]
[1732049850672,1e-08,92479.0,92478.0,0.30385733]
[1732049850901,1e-08,92479.0,92478.0,0.32385733]
[1732049851153,0.00085251,92479.0,92478.0,0.31694255]
[1732049851373,0.00085251,92479.0,92478.0,0.29694255]
[1732049851856,0.00085251,92479.0,92478.0,0.27394255]
[1732049852325,0.00085251,92479.0,92478.0,0.18085506]
[1732049852569,0.00085251,92479.0,92478.0,0.20385506]
[1732049853057,0.00085251,92479.0,92478.0,0.18085506]
[1732049853291,0.00085251,92479.0,92456.0,0.1]
[1732049853530,0.108135,92477.0,92469.0,0.064886]
[1732049853770,0.00085251,92479.0,92446.0,0.064902]
[1732049854002,0.00085251,92479.0,92441.0,0.0498]
[1732049854003,0.00085251,92479.0,92477.0,0.06488]
[1732049854225,0.00085251,92479.0,92478.0,0.07179825]
[1732049854900,0.1274,92482.0,92478.0,0.00691825]
[1732049855137,4.10906255,92479.0,92457.0,0.064894]
[1732049855370,0.108145,92468.0,92461.0,0.00691376]
[1732049855624,0.108145,92468.0,92462.0,0.00691376]
[1732049855846,0.216267,92478.0,92463.0,0.00691376]
[1732049856069,0.108145,92468.0,92464.0,0.00691376]
[1732049856291,0.216286,92471.0,92465.0,0.00691376]
[1732049856524,0.216279,92473.0,92465.0,0.00691376]
[1732049856780,0.108146,92468.0,92466.0,0.00691376]
[1732049857009,4.0,92479.0,92467.0,0.00691376]
[1732049857228,4.0,92479.0,92468.0,0.18086231]
[1732049857229,3.90893069,92479.0,92468.0,0.18086231]
[1732049857440,3.90893069,92479.0,92476.0,0.064881]
[1732049857672,3.90893069,92479.0,92478.0,0.06488]
[1732049857880,3.90864802,92479.0,92478.0,0.00691376]
[1732049858156,3.90864802,92479.0,92478.0,0.07179376]
[1732049858556,3.90864802,92479.0,92478.0,0.00691376]
[1732049858780,3.90864802,92479.0,92456.0,0.23849524]
[1732049859000,3.90864802,92479.0,92462.0,0.064891]
[1732049859216,3.90864802,92479.0,92478.0,0.06488]
[1732049859443,3.90668048,92479.0,92478.0,0.30337524]
[1732049859672,3.90668048,92479.0,92478.0,0.06488]
[1732049861053,3.90668048,92479.0,92478.0,0.17394255]
[1732049861507,3.90668048,92479.0,92478.0,0.27394255]
[1732049861929,3.90668048,92479.0,92478.0,0.29694255]
[1732049862571,3.90668048,92479.0,92478.0,0.29864715]
[1732049862782,3.90668048,92479.0,92478.0,0.27564715]
[1732049862993,3.90753278,92479.0,92478.0,0.27564715]
[1732049863444,3.90753278,92479.0,92478.0,0.29864715]
[1732049864075,3.90753278,92479.0,92478.0,0.17564715]
[1732049864284,3.90753278,92479.0,92478.0,0.27564715]
[1732049865170,3.90753278,92479.0,92478.0,0.28564715]
[1732049865392,3.90753278,92479.0,92478.0,0.29564715]
[1732049865595,3.90753278,92479.0,92478.0,0.31864715]
[1732049865805,3.90753278,92479.0,92478.0,0.29864715]
[1732049865806,3.90554248,92479.0,92478.0,0.29864715]
[1732049866019,3.90554248,92479.0,92478.0,0.28564715]
[1732049866949,0.0004,92499.0,92478.0,0.28564715]
[1732049866950,0.0004,92499.0,92498.0,0.074866]
[1732049867192,0.0004,92499.0,92498.0,0.18392855]
[1732049867415,0.0004,92499.0,92498.0,0.29392855]
[1732049867645,0.0004,92499.0,92498.0,0.31692855]
[1732049867880,0.04623317,92538.0,92510.0,0.01]
[1732049868133,0.04623317,92538.0,92536.0,0.064839]
[1732049868375,0.04623317,92538.0,92531.0,0.064842]
[1732049868598,0.0004,92539.0,92530.0,0.25777693]
[1732049868823,0.0004,92539.0,92536.0,0.19293393]
[1732049869054,0.108463,92539.0,92536.0,0.19293393]
[1732049869296,0.108463,92539.0,92530.0,0.19293393]
[1732049869297,0.0004,92539.0,92530.0,0.19293393]
[1732049869529,0.0004,92539.0,92519.0,0.0098655]
[1732049869530,0.0004,92539.0,92531.0,0.064842]
[1732049869791,0.0004,92539.0,92528.0,0.064845]
[1732049870020,0.0004,92539.0,92520.0,0.10906255]
[1732049870021,0.0812,92538.0,92526.0,0.19288468]
[1732049870257,0.0812,92538.0,92524.0,0.19288468]
[1732049870501,0.0812,92538.0,92527.0,0.064845]
[1732049870725,0.0812,92538.0,92528.0,0.00688411]
[1732049870948,0.25916171,92535.0,92529.0,0.00688411]
[1732049871179,0.04302571,92535.0,92530.0,0.00688411]
[1732049871417,0.04302571,92535.0,92519.0,0.0099444]
[1732049871418,0.2890646,92530.0,92519.0,0.0099444]
[1732049871647,0.18866255,92534.0,92519.0,0.0099444]
[1732049871648,0.0796,92534.0,92519.0,0.0099444]
[1732049871906,0.216139,92533.0,92519.0,0.06485]
[1732049872131,0.108072,92531.0,92521.0,0.064849]
[1732049872372,0.03362571,92535.0,92526.0,0.064845]
[1732049872596,0.03362571,92535.0,92503.0,0.19288468]
[1732049872829,0.03362571,92535.0,92517.0,0.064852]
[1732049872830,0.108071,92532.0,92517.0,0.064852]
[1732049873053,0.108071,92532.0,92516.0,0.0099826]
[1732049873054,0.216136,92534.0,92522.0,0.064848]
[1732049873281,0.03362571,92535.0,92505.0,0.064861]
[1732049873509,0.216138,92534.0,92522.0,0.064848]
[1732049873754,0.10672301,92529.0,92520.0,0.06485]
[1732049873987,0.10672301,92529.0,92505.0,0.1]
[1732049873988,0.2890646,92530.0,92494.0,0.19288468]
[1732049874216,0.2890646,92530.0,92511.0,0.064856]
[1732049874217,0.2890646,92519.0,92511.0,0.064856]
[1732049874462,0.2890646,92519.0,92510.0,0.0098028]
[1732049874685,0.2890646,92519.0,92496.0,0.1]
[1732049874686,0.2890646,92519.0,92497.0,0.10906255]
[1732049874922,0.2890646,92519.0,92507.0,0.064859]
[1732049875174,0.001835,92507.0,92506.0,0.06486]
[1732049875642,0.001835,92507.0,92506.0,0.0635911]
[1732049876328,0.07830672,92529.0,92528.0,0.064845]
[1732049876555,0.0008517,92538.0,92507.0,0.064859]
[1732049876556,0.0008517,92538.0,92532.0,0.064842]
[1732049877030,0.0008517,92538.0,92516.0,0.0098029]
[1732049877252,0.0008517,92538.0,92537.0,0.064838]
[1732049877976,0.0008517,92538.0,92535.0,0.06484]
[1732049877977,0.01321896,92544.0,92541.0,0.064835]
[1732049878204,0.01321896,92544.0,92540.0,0.064836]
[1732049878424,0.01321896,92544.0,92542.0,0.064834]
[1732049878645,0.01321896,92544.0,92540.0,0.064836]
[1732049879351,0.01321896,92544.0,92539.0,0.064836]
[1732049879616,0.01321896,92544.0,92525.0,0.0099121]
[1732049879838,0.01321896,92544.0,92526.0,0.10906255]
[1732049880774,0.01321896,92544.0,92525.0,0.0098399]
[1732049881002,0.01321896,92544.0,92526.0,0.10906255]
[1732049881235,0.12127496,92544.0,92526.0,0.10906255]
[1732049881471,0.10906255,92543.0,92505.0,0.064861]
[1732049881699,0.01321896,92544.0,92525.0,0.009808]
[1732049881700,0.12228151,92544.0,92525.0,0.009808]
[1732049881943,0.10906255,92543.0,92513.0,0.064855]
[1732049882179,0.108067,92535.0,92514.0,0.10906255]
[1732049882400,0.12228151,92544.0,92514.0,0.10906255]
[1732049882401,0.108069,92534.0,92514.0,0.10906255]
[1732049882643,0.108067,92535.0,92523.0,0.02]
[1732049882870,0.216133,92536.0,92523.0,0.02]
[1732049883092,0.10807,92533.0,92523.0,0.02]
[1732049883794,0.216118,92542.0,92523.0,0.02]
[1732049884092,0.108059,92542.0,92523.0,0.02]
[1732049884322,0.108061,92540.0,92524.0,0.00687603]
[1732049884548,0.216118,92542.0,92524.0,0.00687603]
[1732049884787,0.01117657,92544.0,92525.0,0.10906255]
[1732049885013,0.21613,92537.0,92526.0,0.00687603]
[1732049885277,0.21613,92537.0,92527.0,0.00687603]
[1732049885278,0.108065,92537.0,92527.0,0.00687603]
[1732049885507,0.108065,92537.0,92523.0,0.02]
[1732049885508,0.216118,92542.0,92524.0,0.00687603]
[1732049885738,0.216118,92542.0,92525.0,0.00687603]
[1732049885977,0.01117657,92544.0,92526.0,0.00687603]
[1732049886216,0.01202827,92544.0,92523.0,0.0217034]
[1732049886451,0.01202827,92544.0,92527.0,0.00688058]
[1732049886681,0.108068,92534.0,92528.0,0.00688058]
[1732049886910,0.01202827,92544.0,92529.0,0.00688058]
[1732049887138,0.108059,92542.0,92530.0,0.00688058]
[1732049887408,0.216101,92549.0,92531.0,0.00688058]
[1732049887634,0.324156,92548.0,92532.0,0.00688058]
[1732049887872,0.216101,92549.0,92529.0,0.10906255]
[1732049887873,0.108057,92544.0,92533.0,0.00688058]
[1732049888103,0.216106,92547.0,92534.0,0.00688058]
[1732049888312,0.108059,92542.0,92535.0,0.00688058]
[1732049888524,0.108059,92542.0,92529.0,0.10906255]
[1732049888525,0.108059,92542.0,92536.0,0.00688058]
[1732049888738,0.216106,92547.0,92529.0,0.10906255]
[1732049888739,0.108058,92543.0,92542.0,0.0019883]
[1732049888958,0.108058,92543.0,92542.0,0.00886888]
[1732049889425,0.108058,92543.0,92542.0,0.00886817]